[Event "GrandPrix_29.05"]
[Site "Chess.com"]
[Date "2020.05.29"]
[Round "1"]
[White "Nikithebest"]
[Black "Igrok3069"]
[Result "1/2-1/2"]
[WhiteElo "2208"]
[BlackElo "2424"]
[TimeControl "600+2"]
[EndTime "9:22:35 PDT"]
[Termination "Game drawn by agreement"]

1. e4 {[%clk 0:10:01.5]} 1... c6 {[%clk 0:10:00]} 2. d4 {[%clk 0:10:00.4]} 2...
d5 {[%clk 0:10:01.9]} 3. f3 {[%clk 0:10:01.7]} 3... e6 {[%clk 0:10:01.1]} 4. Nc3
{[%clk 0:10:02.1]} 4... Bb4 {[%clk 0:10:00.9]} 5. Qd3 {[%clk 0:10:02.4]} 5...
Ne7 {[%clk 0:09:58.5]} 6. Bd2 {[%clk 0:10:00.8]} 6... b6 {[%clk 0:09:59.4]} 7.
Nge2 {[%clk 0:10:01.3]} 7... Ba6 {[%clk 0:09:59.4]} 8. Qe3 {[%clk 0:10:01.6]}
8... Nd7 {[%clk 0:09:56.4]} 9. O-O-O {[%clk 0:09:53.7]} 9... O-O {[%clk
0:09:55.8]} 10. g4 {[%clk 0:09:54.2]} 10... c5 {[%clk 0:09:55.4]} 11. exd5
{[%clk 0:09:54.2]} 11... exd5 {[%clk 0:09:23.8]} 12. a3 {[%clk 0:09:39.7]} 12...
Ba5 {[%clk 0:09:06.2]} 13. h4 {[%clk 0:09:03.8]} 13... Re8 {[%clk 0:09:00.5]}
14. Qf2 {[%clk 0:08:59.6]} 14... Rc8 {[%clk 0:08:57]} 15. h5 {[%clk 0:08:50.2]}
15... Qc7 {[%clk 0:06:58]} 16. Kb1 {[%clk 0:08:14.1]} 16... Bc4 {[%clk 0:06:20]}
17. Nc1 {[%clk 0:06:55.1]} 17... cxd4 {[%clk 0:05:47]} 18. Qxd4 {[%clk 0:06:49]}
18... Nc6 {[%clk 0:05:47.8]} 19. Qf4 {[%clk 0:06:39]} 19... Qxf4 {[%clk
0:04:33.1]} 20. Bxf4 {[%clk 0:06:34.5]} 20... Bxc3 {[%clk 0:04:28.9]} 21. Bxc4
{[%clk 0:06:24.8]} 21... dxc4 {[%clk 0:04:21.5]} 22. Rxd7 {[%clk 0:06:16.1]}
22... Be5 {[%clk 0:03:59.4]} 23. Bxe5 {[%clk 0:05:19.8]} 23... Nxe5 {[%clk
0:04:00]} 24. Rxa7 {[%clk 0:05:17.7]} 24... Nxf3 {[%clk 0:04:00.9]} 25. Rb7
{[%clk 0:04:43.9]} 25... Rc6 {[%clk 0:03:15.3]} 26. Na2 {[%clk 0:04:41.8]} 26...
h6 {[%clk 0:02:53.2]} 27. Nc3 {[%clk 0:04:39.5]} 27... Rd6 {[%clk 0:02:16.4]}
28. Rd1 {[%clk 0:04:15.5]} 28... Rxd1+ {[%clk 0:01:46.6]} 29. Nxd1 {[%clk
0:04:17.4]} 29... Re6 {[%clk 0:01:39.3]} 30. Nc3 {[%clk 0:03:58]} 30... Re1+
{[%clk 0:01:20.3]} 31. Ka2 {[%clk 0:03:57.6]} 31... Nd4 {[%clk 0:01:21.4]} 32.
Rxb6 {[%clk 0:03:22.8]} 32... Nxc2 {[%clk 0:01:21.7]} 33. b3 {[%clk 0:03:14.2]}
33... cxb3+ {[%clk 0:01:00.2]} 34. Kxb3 {[%clk 0:03:12.9]} 34... Nxa3 {[%clk
0:00:45.4]} 35. Kxa3 {[%clk 0:03:09.1]} 35... Re3 {[%clk 0:00:39.1]} 36. Kb2
{[%clk 0:02:59.8]} 36... Rg3 {[%clk 0:00:37]} 37. Rb4 {[%clk 0:03:00.1]} 37...
g6 {[%clk 0:00:28.6]} 38. hxg6 {[%clk 0:02:59.5]} 38... fxg6 {[%clk 0:00:29.1]}
39. Kc2 {[%clk 0:02:56.4]} 39... h5 {[%clk 0:00:27.5]} 40. gxh5 {[%clk
0:02:56.1]} 40... gxh5 {[%clk 0:00:28]} 41. Kd2 {[%clk 0:02:51.6]} 41... Kg7
{[%clk 0:00:27.2]} 42. Ne2 {[%clk 0:02:51.7]} 42... Rg4 {[%clk 0:00:27.3]} 43.
Rb6 {[%clk 0:02:22.6]} 43... Rg6 {[%clk 0:00:27.2]} 44. Rb7+ {[%clk 0:02:19.2]}
44... Kh6 {[%clk 0:00:25.4]} 45. Ke3 {[%clk 0:02:20.6]} 45... Ra6 {[%clk
0:00:18.3]} 46. Rb5 {[%clk 0:02:17.9]} 46... h4 {[%clk 0:00:15.4]} 47. Nf4
{[%clk 0:02:10.8]} 47... h3 {[%clk 0:00:15.4]} 48. Rh5+ {[%clk 0:02:09.7]} 48...
Kg7 {[%clk 0:00:16.5]} 49. Nxh3 {[%clk 0:02:10.4]} 49... Rh6 {[%clk 0:00:16.5]}
50. Rg5+ {[%clk 0:02:09.8]} 50... Rg6 {[%clk 0:00:17.5]} 51. Re5 {[%clk
0:02:06.7]} 51... Rg3+ {[%clk 0:00:17.5]} 52. Kf4 {[%clk 0:01:59.5]} 1/2-1/2

[Event "GrandPrix_29.05"]
[Site "Chess.com"]
[Date "2020.05.29"]
[Round "1"]
[White "chessdjw"]
[Black "Volodar_Murzin"]
[Result "0-1"]
[WhiteElo "1763"]
[BlackElo "2332"]
[TimeControl "600+2"]
[EndTime "9:22:35 PDT"]
[Termination "Volodar_Murzin won on time"]

1. e4 {[%clk 0:10:01.7]} 1... c6 {[%clk 0:09:31.7]} 2. Nf3 {[%clk 0:10:01.8]}
2... d5 {[%clk 0:09:31.1]} 3. Nc3 {[%clk 0:10:02.9]} 3... Bg4 {[%clk 0:09:31.3]}
4. h3 {[%clk 0:10:03.4]} 4... Bxf3 {[%clk 0:09:31.5]} 5. Qxf3 {[%clk 0:10:05.3]}
5... Nf6 {[%clk 0:09:33.1]} 6. Be2 {[%clk 0:10:05.8]} 6... e6 {[%clk 0:09:31.5]}
7. O-O {[%clk 0:10:06.2]} 7... Nbd7 {[%clk 0:09:27.9]} 8. d4 {[%clk 0:10:04.9]}
8... dxe4 {[%clk 0:09:18.2]} 9. Nxe4 {[%clk 0:10:05.6]} 9... Nxe4 {[%clk
0:09:20.1]} 10. Qxe4 {[%clk 0:10:07.4]} 10... Nf6 {[%clk 0:09:22]} 11. Qd3
{[%clk 0:10:08.6]} 11... Bd6 {[%clk 0:09:23.3]} 12. a4 {[%clk 0:10:00.5]} 12...
Qc7 {[%clk 0:09:21.7]} 13. a5 {[%clk 0:09:55.8]} 13... O-O {[%clk 0:09:13]} 14.
Bf3 {[%clk 0:09:48.6]} 14... Rad8 {[%clk 0:09:05.1]} 15. Qc4 {[%clk 0:08:11.5]}
15... Nd5 {[%clk 0:08:06.5]} 16. g3 {[%clk 0:07:42.7]} 16... c5 {[%clk
0:07:00.4]} 17. dxc5 {[%clk 0:07:19.3]} 17... Bxc5 {[%clk 0:07:00.2]} 18. Kg2
{[%clk 0:07:20.6]} 18... Qc8 {[%clk 0:05:56.7]} 19. c3 {[%clk 0:06:34.2]} 19...
Rd7 {[%clk 0:05:34.9]} 20. Rd1 {[%clk 0:05:57.1]} 20... a6 {[%clk 0:04:51.4]}
21. Bd2 {[%clk 0:04:26]} 21... h6 {[%clk 0:03:05.8]} 22. Rac1 {[%clk 0:03:52.6]}
22... Rc7 {[%clk 0:02:00.3]} 23. Bxd5 {[%clk 0:02:06.4]} 23... Ba7 {[%clk
0:01:59.7]} 24. Qb3 {[%clk 0:01:39.2]} 24... exd5 {[%clk 0:01:57.8]} 25. Qxd5
{[%clk 0:01:37.7]} 25... Rc5 {[%clk 0:01:57.4]} 26. Qa2 {[%clk 0:00:24.2]} 26...
Qc6+ {[%clk 0:01:22]} 27. f3 {[%clk 0:00:23.1]} 27... Rf5 {[%clk 0:01:08.2]} 28.
Rf1 {[%clk 0:00:23.9]} 28... Rd8 {[%clk 0:01:03.8]} 29. b4 {[%clk 0:00:19.5]}
29... Qe6 {[%clk 0:00:48.8]} 30. Qc2 {[%clk 0:00:03.7]} 30... Qe2+ {[%clk
0:00:43.5]} 31. Kh1 {[%clk 0:00:03.9]} 31... Rxd2 {[%clk 0:00:42.4]} 0-1

[Event "GrandPrix_29.05"]
[Site "Chess.com"]
[Date "2020.05.29"]
[Round "1"]
[White "madamDD"]
[Black "kostasam18"]
[Result "1-0"]
[WhiteElo "2510"]
[BlackElo "2052"]
[TimeControl "600+2"]
[EndTime "9:22:36 PDT"]
[Termination "madamDD won by resignation"]

1. e4 {[%clk 0:10:01.3]} 1... e5 {[%clk 0:09:59.7]} 2. Nf3 {[%clk 0:10:00.8]}
2... Nc6 {[%clk 0:10:00]} 3. Bb5 {[%clk 0:09:51.1]} 3... a6 {[%clk 0:10:00.1]}
4. Ba4 {[%clk 0:09:50.4]} 4... Nf6 {[%clk 0:10:00.4]} 5. O-O {[%clk 0:09:50.4]}
5... Be7 {[%clk 0:09:59.6]} 6. d3 {[%clk 0:09:47.4]} 6... b5 {[%clk 0:09:54.8]}
7. Bb3 {[%clk 0:09:47.7]} 7... d6 {[%clk 0:09:55]} 8. a3 {[%clk 0:09:42.8]} 8...
O-O {[%clk 0:09:49.2]} 9. Nc3 {[%clk 0:09:37.4]} 9... Bg4 {[%clk 0:09:48.3]} 10.
Be3 {[%clk 0:09:30.1]} 10... Nd4 {[%clk 0:09:46.2]} 11. Bxd4 {[%clk 0:09:29.4]}
11... exd4 {[%clk 0:09:46.8]} 12. Nd5 {[%clk 0:09:30]} 12... Nxd5 {[%clk
0:09:32.7]} 13. Bxd5 {[%clk 0:09:29]} 13... Rc8 {[%clk 0:09:33.5]} 14. h3 {[%clk
0:08:56]} 14... Bd7 {[%clk 0:09:08.3]} 15. Nd2 {[%clk 0:08:24.5]} 15... c6
{[%clk 0:08:38.8]} 16. Bb3 {[%clk 0:08:21.9]} 16... c5 {[%clk 0:08:27.6]} 17. f4
{[%clk 0:08:10.8]} 17... Kh8 {[%clk 0:08:25.5]} 18. Qh5 {[%clk 0:07:08.9]} 18...
g6 {[%clk 0:08:15.1]} 19. Qe2 {[%clk 0:07:04.2]} 19... Be6 {[%clk 0:07:58.2]}
20. Bxe6 {[%clk 0:05:56.7]} 20... fxe6 {[%clk 0:08:00.1]} 21. Qg4 {[%clk
0:04:06.1]} 21... e5 {[%clk 0:07:32]} 22. fxe5 {[%clk 0:03:34.6]} 22... dxe5
{[%clk 0:07:22.3]} 23. Rxf8+ {[%clk 0:03:34.8]} 23... Bxf8 {[%clk 0:07:18.8]}
24. Qe6 {[%clk 0:03:18.6]} 24... Bd6 {[%clk 0:06:38]} 25. Nf3 {[%clk 0:03:10.3]}
25... Qc7 {[%clk 0:06:25.3]} 26. Ng5 {[%clk 0:02:42.4]} 26... Rf8 {[%clk
0:06:15.7]} 27. Rf1 {[%clk 0:02:19.6]} 27... Rxf1+ {[%clk 0:06:04.4]} 28. Kxf1
{[%clk 0:02:21.5]} 28... Kg7 {[%clk 0:06:03.7]} 29. Qe8 {[%clk 0:02:17.3]} 29...
Qe7 {[%clk 0:05:27.8]} 30. Qxe7+ {[%clk 0:02:04.9]} 30... Bxe7 {[%clk
0:05:29.7]} 31. Ne6+ {[%clk 0:02:06.1]} 31... Kf6 {[%clk 0:05:06.5]} 32. Nc7
{[%clk 0:02:08]} 32... Bd8 {[%clk 0:05:02.8]} 33. Nxa6 {[%clk 0:02:00.6]} 33...
Bb6 {[%clk 0:04:59.7]} 34. b4 {[%clk 0:01:49]} 34... cxb4 {[%clk 0:04:47.8]} 35.
Nxb4 {[%clk 0:01:45.6]} 35... Ke6 {[%clk 0:04:44.6]} 36. Ke2 {[%clk 0:01:41]}
36... Bd8 {[%clk 0:04:43.7]} 37. Nd5 {[%clk 0:01:37]} 37... Kd6 {[%clk
0:04:36.8]} 38. Kf3 {[%clk 0:01:26.6]} 38... Bg5 {[%clk 0:04:32.8]} 39. a4
{[%clk 0:00:47.7]} 39... bxa4 {[%clk 0:04:29.3]} 40. Nb6 {[%clk 0:00:48.6]}
40... Kc5 {[%clk 0:04:23.7]} 41. Nxa4+ {[%clk 0:00:49.3]} 41... Kb4 {[%clk
0:04:24.9]} 42. Nb6 {[%clk 0:00:46.3]} 42... Kc3 {[%clk 0:04:20.5]} 43. Nd7
{[%clk 0:00:40.2]} 43... Kxc2 {[%clk 0:04:19.8]} 44. Nxe5 {[%clk 0:00:41.4]}
44... Bf6 {[%clk 0:04:04.1]} 45. Nd7 {[%clk 0:00:42.4]} 45... Be7 {[%clk
0:04:01.5]} 46. Ke2 {[%clk 0:00:43.3]} 46... Kc3 {[%clk 0:03:55.2]} 47. Nb6
{[%clk 0:00:38.2]} 47... Bd6 {[%clk 0:03:48.3]} 48. Nd5+ {[%clk 0:00:37.4]}
48... Kb3 {[%clk 0:03:45.4]} 49. Nf6 {[%clk 0:00:37.2]} 49... h5 {[%clk
0:03:35.7]} 50. Nd7 {[%clk 0:00:27.1]} 50... Kb4 {[%clk 0:03:06.7]} 51. e5
{[%clk 0:00:28.1]} 51... Be7 {[%clk 0:03:04.5]} 52. Kf3 {[%clk 0:00:29.2]} 52...
Kb5 {[%clk 0:02:59.9]} 53. Ke4 {[%clk 0:00:30.3]} 53... Kc6 {[%clk 0:03:00.1]}
54. Nf6 {[%clk 0:00:29]} 54... Kc5 {[%clk 0:02:58]} 55. Ng8 {[%clk 0:00:27.1]}
55... Bd8 {[%clk 0:02:49.3]} 56. e6 {[%clk 0:00:24.8]} 56... Kd6 {[%clk
0:02:42.7]} 57. e7 {[%clk 0:00:26]} 57... Bxe7 {[%clk 0:02:37.6]} 58. Nxe7
{[%clk 0:00:27.9]} 58... Kxe7 {[%clk 0:02:39.1]} 59. Kxd4 {[%clk 0:00:29.2]}
59... Kd6 {[%clk 0:02:40.5]} 60. h4 {[%clk 0:00:22.6]} 1-0

[Event "GrandPrix_29.05"]
[Site "Chess.com"]
[Date "2020.05.29"]
[Round "1"]
[White "Arseniy_Nesterov"]
[Black "ehrenfeld"]
[Result "1-0"]
[WhiteElo "2323"]
[BlackElo "1763"]
[TimeControl "600+2"]
[EndTime "9:22:39 PDT"]
[Termination "Arseniy_Nesterov won on time"]

1. d4 {[%clk 0:09:57.5]} 1... f5 {[%clk 0:09:59.3]} 2. Nf3 {[%clk 0:09:56]} 2...
Nf6 {[%clk 0:09:59.9]} 3. c4 {[%clk 0:09:56.2]} 3... g6 {[%clk 0:10:00.4]} 4. e3
{[%clk 0:09:56]} 4... Bg7 {[%clk 0:10:00.3]} 5. b4 {[%clk 0:09:55]} 5... O-O
{[%clk 0:09:50.2]} 6. Be2 {[%clk 0:09:50.5]} 6... d6 {[%clk 0:09:25.7]} 7. Bb2
{[%clk 0:09:50.6]} 7... a5 {[%clk 0:08:24.1]} 8. b5 {[%clk 0:09:43.4]} 8... Qe8
{[%clk 0:07:57.3]} 9. Qc2 {[%clk 0:09:18.8]} 9... Nbd7 {[%clk 0:06:15.4]} 10.
O-O {[%clk 0:09:17]} 10... h6 {[%clk 0:05:26.7]} 11. Nbd2 {[%clk 0:09:01.7]}
11... e5 {[%clk 0:05:26.3]} 12. dxe5 {[%clk 0:08:59.8]} 12... dxe5 {[%clk
0:05:24.5]} 13. c5 {[%clk 0:08:57.3]} 13... e4 {[%clk 0:05:17.8]} 14. Nd4 {[%clk
0:08:50.1]} 14... Ne5 {[%clk 0:05:17.9]} 15. Nc4 {[%clk 0:08:47.5]} 15... Nxc4
{[%clk 0:05:16.1]} 16. Bxc4+ {[%clk 0:08:46.7]} 16... Kh8 {[%clk 0:05:16.4]} 17.
c6 {[%clk 0:08:30.7]} 17... b6 {[%clk 0:05:09.7]} 18. Ba3 {[%clk 0:08:29.1]}
18... Rf7 {[%clk 0:04:31.6]} 19. Bxf7 {[%clk 0:08:11.3]} 19... Qxf7 {[%clk
0:04:32.2]} 20. Qb3 {[%clk 0:08:10.2]} 20... Qe8 {[%clk 0:04:26.6]} 21. Rad1
{[%clk 0:08:07.7]} 21... g5 {[%clk 0:04:16.6]} 22. Rd2 {[%clk 0:08:02.7]} 22...
f4 {[%clk 0:04:09.3]} 23. exf4 {[%clk 0:05:57.5]} 23... gxf4 {[%clk 0:04:08.2]}
24. Re1 {[%clk 0:05:56.2]} 24... a4 {[%clk 0:03:25.7]} 25. Qc4 {[%clk 0:04:46]}
25... Qg6 {[%clk 0:03:25.4]} 26. Ne2 {[%clk 0:03:35.1]} 26... Bh3 {[%clk
0:01:28.9]} 27. Nxf4 {[%clk 0:03:32.7]} 27... Qg5 {[%clk 0:01:30]} 28. Bc1
{[%clk 0:02:58.2]} 28... Bf5 {[%clk 0:00:37.8]} 29. Rdd1 {[%clk 0:02:51.7]}
29... Rg8 {[%clk 0:00:32.2]} 30. g3 {[%clk 0:02:13.2]} 30... Ng4 {[%clk
0:00:27]} 31. Rxe4 {[%clk 0:01:24.2]} 31... Bxe4 {[%clk 0:00:26]} 32. Qxe4
{[%clk 0:01:25.1]} 32... Nf6 {[%clk 0:00:19.1]} 33. Qc2 {[%clk 0:01:14.4]} 33...
Bf8 {[%clk 0:00:18.1]} 34. Nd5 {[%clk 0:01:08.9]} 34... Qxd5 {[%clk 0:00:07.1]}
35. Rxd5 {[%clk 0:01:09.4]} 35... Nxd5 {[%clk 0:00:08]} 36. Bb2+ {[%clk
0:01:07.2]} 36... Bg7 {[%clk 0:00:07.3]} 37. Qg6 {[%clk 0:01:04.6]} 1-0

[Event "GrandPrix_29.05"]
[Site "Chess.com"]
[Date "2020.05.29"]
[Round "1"]
[White "mishanick"]
[Black "RussianChessFighter"]
[Result "1-0"]
[WhiteElo "2378"]
[BlackElo "1761"]
[TimeControl "600+2"]
[EndTime "9:22:43 PDT"]
[Termination "mishanick won by resignation"]

1. d4 {[%clk 0:09:56.4]} 1... f5 {[%clk 0:09:57.2]} 2. c4 {[%clk 0:09:53]} 2...
Nf6 {[%clk 0:09:48]} 3. Nf3 {[%clk 0:09:53.3]} 3... g6 {[%clk 0:09:46.7]} 4. g3
{[%clk 0:09:53.4]} 4... Bg7 {[%clk 0:09:47.7]} 5. Bg2 {[%clk 0:09:55]} 5... O-O
{[%clk 0:09:49.3]} 6. O-O {[%clk 0:09:56]} 6... d6 {[%clk 0:09:50.8]} 7. Nc3
{[%clk 0:09:57.2]} 7... c6 {[%clk 0:09:50.9]} 8. d5 {[%clk 0:09:42.8]} 8... e5
{[%clk 0:09:14.9]} 9. dxe6 {[%clk 0:09:43.3]} 9... Bxe6 {[%clk 0:09:15.4]} 10.
b3 {[%clk 0:09:42.9]} 10... Qe7 {[%clk 0:08:33.2]} 11. Ba3 {[%clk 0:09:16.1]}
11... Rd8 {[%clk 0:08:28.2]} 12. Qc2 {[%clk 0:09:16.3]} 12... Na6 {[%clk
0:08:23.1]} 13. Rad1 {[%clk 0:09:15.6]} 13... Nc5 {[%clk 0:08:09.4]} 14. Rd2
{[%clk 0:09:06.6]} 14... Nfe4 {[%clk 0:07:10.8]} 15. Nxe4 {[%clk 0:09:02.6]}
15... Nxe4 {[%clk 0:07:12.7]} 16. Rd3 {[%clk 0:08:51]} 16... Qf6 {[%clk
0:06:39.2]} 17. e3 {[%clk 0:08:20.6]} 17... d5 {[%clk 0:06:00.6]} 18. Nd4 {[%clk
0:08:05.3]} 18... dxc4 {[%clk 0:05:15.4]} 19. bxc4 {[%clk 0:08:05]} 19... Bf7
{[%clk 0:05:16.7]} 20. Rfd1 {[%clk 0:07:45.9]} 20... c5 {[%clk 0:04:33.8]} 21.
Nb5 {[%clk 0:07:41.7]} 21... b6 {[%clk 0:04:16.6]} 22. Nd6 {[%clk 0:06:17.5]}
22... Rxd6 {[%clk 0:03:07.3]} 23. Rxd6 {[%clk 0:06:15]} 23... Nxd6 {[%clk
0:03:09.2]} 24. Bxa8 {[%clk 0:06:15.6]} 24... Nxc4 {[%clk 0:03:06.5]} 25. Bc1
{[%clk 0:06:14.4]} 25... h5 {[%clk 0:02:49.5]} 26. e4 {[%clk 0:05:21.1]} 26...
h4 {[%clk 0:02:26.6]} 27. exf5 {[%clk 0:05:19.4]} 27... gxf5 {[%clk 0:02:27.3]}
28. Bg2 {[%clk 0:04:49.6]} 28... Ne5 {[%clk 0:01:57.2]} 29. Bf4 {[%clk
0:03:51.6]} 29... c4 {[%clk 0:01:17.1]} 30. Bd5 {[%clk 0:02:12.3]} 30... Bxd5
{[%clk 0:00:18.7]} 31. Rxd5 {[%clk 0:02:14.2]} 31... Qe6 {[%clk 0:00:20.2]} 32.
Rd8+ {[%clk 0:02:10.3]} 32... Kf7 {[%clk 0:00:19.4]} 33. Qe2 {[%clk 0:01:40.6]}
33... h3 {[%clk 0:00:08.4]} 34. Bxe5 {[%clk 0:01:22.4]} 34... Qxe5 {[%clk
0:00:08]} 35. Qh5+ {[%clk 0:01:23.4]} 35... Kf6 {[%clk 0:00:06]} 36. Qh4+ {[%clk
0:01:19.7]} 36... Kg6 {[%clk 0:00:07.1]} 37. Qxc4 {[%clk 0:01:17.4]} 37... Qe1+
{[%clk 0:00:05.8]} 38. Qf1 {[%clk 0:01:18.2]} 38... Qe7 {[%clk 0:00:07.5]} 39.
Rd1 {[%clk 0:01:16.7]} 1-0

[Event "GrandPrix_29.05"]
[Site "Chess.com"]
[Date "2020.05.29"]
[Round "1"]
[White "vladislavkovalev"]
[Black "GMStefanova"]
[Result "0-1"]
[WhiteElo "2678"]
[BlackElo "2717"]
[TimeControl "600+2"]
[EndTime "9:22:44 PDT"]
[Termination "GMStefanova won by resignation"]

1. e4 {[%clk 0:10:01.9]} 1... c6 {[%clk 0:09:57.7]} 2. Nf3 {[%clk 0:09:59.8]}
2... d5 {[%clk 0:09:57.2]} 3. Nc3 {[%clk 0:10:01.3]} 3... Bg4 {[%clk 0:09:48.6]}
4. h3 {[%clk 0:10:01.9]} 4... Bxf3 {[%clk 0:09:48.7]} 5. Qxf3 {[%clk 0:10:03]}
5... e6 {[%clk 0:09:46]} 6. Be2 {[%clk 0:10:00.7]} 6... Bc5 {[%clk 0:09:40.6]}
7. O-O {[%clk 0:10:01.2]} 7... Ne7 {[%clk 0:09:27.1]} 8. Rd1 {[%clk 0:10:01.2]}
8... d4 {[%clk 0:09:00.2]} 9. Nb1 {[%clk 0:10:00.4]} 9... O-O {[%clk 0:08:52.5]}
10. d3 {[%clk 0:10:00.6]} 10... f5 {[%clk 0:08:43.4]} 11. Nd2 {[%clk 0:09:07.5]}
11... Ng6 {[%clk 0:08:38.4]} 12. Nb3 {[%clk 0:07:59]} 12... Bb6 {[%clk 0:08:20]}
13. exf5 {[%clk 0:07:43.1]} 13... Rxf5 {[%clk 0:07:15.8]} 14. Qe4 {[%clk
0:06:24.9]} 14... Re5 {[%clk 0:07:00]} 15. Qg4 {[%clk 0:06:26.2]} 15... Nd7
{[%clk 0:06:43.1]} 16. Bf1 {[%clk 0:06:11.4]} 16... Nf6 {[%clk 0:06:33.7]} 17.
Qf3 {[%clk 0:06:05.2]} 17... Qd6 {[%clk 0:06:11.7]} 18. Nd2 {[%clk 0:05:38.1]}
18... Rf5 {[%clk 0:05:59.6]} 19. Nc4 {[%clk 0:05:38.3]} 19... Qe7 {[%clk
0:05:41.9]} 20. Qe2 {[%clk 0:05:36.6]} 20... Bc7 {[%clk 0:05:39.6]} 21. a4
{[%clk 0:05:14.8]} 21... Re8 {[%clk 0:05:25.9]} 22. g3 {[%clk 0:04:46.7]} 22...
h5 {[%clk 0:05:14.1]} 23. Bg2 {[%clk 0:04:33.1]} 23... Bb8 {[%clk 0:05:11.7]}
24. b4 {[%clk 0:02:04.4]} 24... Qc7 {[%clk 0:04:48.3]} 25. Be4 {[%clk
0:01:18.3]} 25... b5 {[%clk 0:02:55.2]} 26. axb5 {[%clk 0:01:17]} 26... cxb5
{[%clk 0:02:53.7]} 27. Na5 {[%clk 0:00:53.8]} 27... Nxe4 {[%clk 0:02:36.7]} 28.
dxe4 {[%clk 0:00:55.7]} 28... Rf7 {[%clk 0:02:16.3]} 29. Qxh5 {[%clk 0:00:24.2]}
29... Qxc2 {[%clk 0:02:12.2]} 30. Rd2 {[%clk 0:00:25.1]} 30... Qxe4 {[%clk
0:02:08.8]} 31. Re2 {[%clk 0:00:11]} 31... Qd3 {[%clk 0:01:57]} 32. Rd2 {[%clk
0:00:11.9]} 32... Qc3 {[%clk 0:01:18.2]} 33. Qxg6 {[%clk 0:00:05.1]} 33... Qxa1
{[%clk 0:01:17.3]} 34. Nb3 {[%clk 0:00:03.5]} 34... Qc3 {[%clk 0:01:16.4]} 35.
Qc2 {[%clk 0:00:03.6]} 35... Rc8 {[%clk 0:01:13.1]} 36. Nxd4 {[%clk 0:00:02.6]}
36... Qxc2 {[%clk 0:01:07.4]} 37. Nxc2 {[%clk 0:00:04.5]} 37... Rfc7 {[%clk
0:01:07.1]} 38. Nd4 {[%clk 0:00:06]} 38... Rxc1+ {[%clk 0:01:07.4]} 39. Kg2
{[%clk 0:00:07.9]} 39... Rd8 {[%clk 0:01:05.1]} 0-1